Workbook

Sheet Vijnana Vahini
A1: Swami Vivekananda Youth Movement
A2: Vijnana Vahini Budget 2013 2014
A3: SNo | B3: Activities | C3: Rate | D3: Unit | E3: No. of Units | F3: Amount | G3: Remarks
A4: A | B4: Personnel Cost | C4: =SUM(F5:F8) -> 278100 | D4: per year | E4: 1 | F4: =C4*E4 -> 278100
A5: A.1 | B5: Program Manager | C5: 7500 | D5: per month | E5: 12 | F5: =C5*E5 -> 90000 | G5: Same as last year
A6: A.2 | B6: Project Coordinator | C6: 8000 | D6: per month | E6: 12 | F6: =C6*E6 -> 96000 | G6: Decrease from Rs.10000 pm
A7: A.3 | B7: Facilitator | C7: 7000 | D7: per month | E7: 12 | F7: 84000 | G7: Decrease from Rs.7500 pm
A8: A.4 | B8: Staff Benefit | C8: =SUM(F5:F7)*0.03 -> 8100 | D8: per year | E8: 1 | F8: 8100 | G8: Staff benefit at 3%
A9: B | B9: Recurring Cost | C9: =SUM(F10,F16,F19,F26,F29) -> 373200 | D9: per year | E9: 1 | F9: 373200
A10: B.1 | B10: Operational Expenses | C10: =SUM(F11:F15) -> 50200 | D10: per year | E10: 1 | F10: =C10*E10 -> 50200
A11: B.1.1 | B11: Office rent | C11: 1700 | D11: per month | E11: 12 | F11: =C11*E11 -> 20400 | G11: Actual Cost
A12: B.1.2 | B12: Stationery & other expenses | C12: 750 | D12: per month | E12: 12 | F12: =C12*E12 -> 9000 | G12: Based on last year
A13: B.1.3 | B13: Phone calls | C13: 400 | D13: per month | E13: 12 | F13: 4800 | G13: Based on last year | H13: `
A14: B.1.4 | B14: Teachers' meeting | C14: 1000 | D14: per meeting | E14: 4 | F14: 4000 | G14: Based on last year
A15: B.1.5 | B15: Mentoring & Monitoring | C15: 12000 | D15: per year | E15: 1 | F15: 12000 | G15: Decreased from Rs.2500 pm
A16: B.2 | B16: Travel & Conveyance | C16: =SUM(F17:F18) -> 120000 | D16: per year | E16: 1 | F16: =C16*E16 -> 120000
A17: B.2.1 | B17: Vehicle travel | C17: =17 -> 17 | D17: per km | E17: 6000 | F17: =C17*E17 -> 102000 | G17: Actual Cost
A18: B.2.2 | B18: Staff travel & food | C18: 1500 | D18: per month | E18: 12 | F18: =C18*E18 -> 18000 | G18: Based on last year
A19: B.3 | B19: Technical & resource support | C19: =SUM(F20:F25) -> 123000 | D19: per year | E19: 1 | F19: =C19*E19 -> 123000
A20: B.3.1 | B20: Equipment & chemicals | C20: 50000 | D20: per year | E20: 1 | F20: =C20*E20 -> 50000 | G20: Estimated - taking into consideration last year's cost
A21: B.3.2 | B21: Books, CDs & DVDs | C21: 15000 | D21: per year | E21: 1 | F21: =C21*E21 -> 15000 | G21: Based on last year
A22: B.3.3 | B22: Other materials | C22: 10000 | D22: per year | E22: 1 | F22: 10000 | G22: Based on last year
A23: B.3.4 | B23: Question Box | C23: 400 | D23: per box | E23: 35 | F23: 14000 | G23: New plan to setup question boxes in schools
A24: B.3.5 | B24: Newsletter | C24: 2000 | D24: per month | E24: 12 | F24: 24000 | G24: New plan to publish newsletters
A25: B.3.6 | B25: Workbook | C25: 10000 | D25: one time | E25: 1 | F25: 10000 | G25: Transport & Distribution
A26: B.4 | B26: Capacity building | C26: =SUM(F27:F28) -> 20000 | D26: per year | E26: 1 | F26: =C26*E26 -> 20000
A27: B.4.1 | B27: Training Programs | C27: 7500 | D27: per program | E27: 2 | F27: 15000 | G27: Based on last year, additional funding from KSTA
A28: B.4.2 | B28: Staff training & exposure | C28: 5000 | D28: per year | E28: 1 | F28: 5000 | G28: Estimated - additional funding from KSTePS
A29: B.5 | B29: Events | C29: =SUM(F30:F31) -> 60000 | D29: per year | E29: 1 | F29: 60000
A30: B.5.1 | B30: School based events | C30: 500 | D30: per program | E30: 20 | F30: 10000 | G30: Based on last year
A31: B.5.2 | B31: Science calendar | C31: 50000 | D31: per year | E31: 1 | F31: 50000 | G31: Based on last year, additional funding from KSTePS
A32: C | B32: Capital cost | C32: =F33 -> 30000 | D32: one time | E32: 1 | F32: 30000
A33: C.1 | B33: LCD Projector | C33: 30000 | D33: one time | E33: 1 | F33: 30000 | G33: Need to replace the old one as it was damaged because of a power fluctuation and is beyond repair
B34: Budget | F34: =F4+F9+F32 -> 681300
B35: Overheads | D35: 0.04 | F35: =F34*0.04 -> 27252 | G35: Organizational overheads at 4%
B36: Total Budget | F36: =F34+F35 -> 708552 | G36: Last year Rs.723,000
B37: Science kits (incl of overheads) | C37: 15000 | D37: per kit | E37: 6 | F37: =(C37*E37)*1.04 -> 93600 | G37: These kits will be having equipment which will be used in schools with huge class strength
B38: Assembling 'Lab in a Box' | C38: 10000 | D38: per kit | E38: 17 | F38: =(C38*E38)*1.04 -> 176800
B39: Fund Balance with SVYM | F39: 190990.6 | G39: As on 31st May 2013
B40: Additional Funds Request | F40: =F36+F37+F38-F39 -> 787961.4
